Cogmind - Beta 15 @@@ ROGUE MODE // 2025.06.11 @ 15:44:02 Player: Minty Result: Destroyed by G-73 Enforcer with Phase Gun Performance ------------- Evolutions (7) 3500 Regions Visited (19) 3800 Robots Destroyed (141) 705 Value Destroyed (9920) 9920 Prototype IDs (14) 280 Alien Tech Used (0) 0 Bonus (8912) 8912 TOTAL SCORE: 27117 Bonus ------- High Alert Combat Kills 1070 Follower Combat Kills 3280 Entered Garrisons 1200 Used RIF Installer 3000 Entered DSFs 500 Friendly Fire -138 Cogmind --------- Core Integrity 0/1300 Matter 131/300 Energy 63/100 System Corruption 0% Temperature Cool (9) Movement Flying (37) Location -3/Garrison Parts ------- > --- POWER (2) -------- (None) > --- PROPULSION (4) --- Xenon Bombardment Thruster Xenon Bombardment Thruster > --- UTILITY (12) ----- Improved Target Analyzer Improved Target Analyzer Graphene Brace Relay Coupler [Demolisher] (24) Relay Coupler [Heavy] (23) > --- WEAPON (3) ------- Compact Mass Driver > --- INVENTORY (5) ---- Advanced Heat Sink Relay Coupler [Specialist] (32) Long-range Phase Cannon Peak State ------------ > --- POWER ------------ Light Antimatter Reactor Particle Reactor > --- PROPULSION ------- Myomer Leg Myomer Leg Myomer Leg Myomer Leg > --- UTILITY ---------- Improved Heat Sink Advanced Heat Sink Large Storage Unit Structural Scanner Improved Target Analyzer Improved Target Analyzer Improved Reaction Control System Improved Phase Shifter Heavy Armor Plating Relay Coupler [Specialist] Relay Coupler [Specialist] > --- WEAPON ----------- Quantum Rifle Railgun Compact Mass Driver > --- INVENTORY -------- Myomer Leg Myomer Leg Myomer Leg Myomer Leg Graphene Brace Relay Coupler [NC] Relay Coupler [Cutter] Relay Coupler [Sentry] Relay Coupler [Demolisher] Relay Coupler [Specialist] Relay Coupler [Heavy] Trap Extractor Remote Datajack Improved Remote Datajack Enhanced Force Lance [Rating: 122] Favorites ----------- Power Micro Fission Core Engine Improved Ion Engine Power Core Micro Fission Core Reactor Light Antimatter Reactor Propulsion Improved Heavy Treads Treads Improved Heavy Treads Leg Carbon-fiber Leg Wheel Armored Wheel Hover Unit Cooled Antigrav System Flight Unit Cesium-ion Thruster Utility Large Storage Unit Device Advanced Heat Sink Storage Large Storage Unit Processor Improved Target Analyzer Hackware Relay Coupler [Specialist] Protection Improved Light Armor Plating Weapon Katana Energy Gun EM Pulse Gun Energy Cannon Advanced Plasma Cannon Ballistic Gun Gauss Rifle Ballistic Cannon Compact Mass Driver Launcher Mini Grenade Launcher Special Weapon Remote Datajack Impact Weapon Mace Slashing Weapon Katana Piercing Weapon Enhanced Force Lance Special Melee Weapon Improved Datajack Build | -11 -10 -10 -8 -8 -8 -8 -7 -7 -7 -7 -6 -6 -5 -5 -4 -4 -4 -3 -3 ------- Run | Yrd Mat Sub Mat Gar Mat Gar Fac Gar Fac DSF Fac Gar Fac Gar Fac Upp Upp Res Gar Slots Evolved 14 | . . . 4 . . . 2 . . . 2 . 2 . 2 . . 2 . Power 1 | . . . . . . . . . . . . . . . 1 . . . . Propulsion 2 | . . . 2 . . . . . . . . . . . . . . . . Utility 10 | . . . 2 . . . 2 . . . 2 . 2 . 1 . . 1 . Weapon 1 | . . . . . . . . . . . . . . . . . . 1 . Parts Attached 238 | . 13 1 11 13 6 32 5 23 3 3 11 19 8 12 35 2 2 34 5 Power 27 | . 1 . 2 1 . 4 . 3 . . . . 2 . 7 . 1 5 1 Engine 8 | . 1 . 2 1 . . . 1 . . . . 1 . 2 . . . . Core 12 | . . . . . . 4 . 2 . . . . 1 . 4 . 1 . . Reactor 7 | . . . . . . . . . . . . . . . 1 . . 5 1 Propulsion 65 | . . . 5 6 2 15 . 3 2 . 3 9 . . 7 . 1 9 3 Treads 7 | . . . . . . . . 3 1 . . 3 . . . . . . . Leg 41 | . . . . 6 2 14 . . . . . 6 . . 6 . 1 6 . Wheel 7 | . . . 2 . . . . . 1 . 3 . . . 1 . . . . Hover 4 | . . . . . . 1 . . . . . . . . . . . 3 . Flight 6 | . . . 3 . . . . . . . . . . . . . . . 3 Utility 103 | . 4 . 3 3 2 10 4 15 . 3 7 9 4 12 14 1 . 12 . Device 21 | . 1 . 1 . . . 1 1 . . 1 1 2 3 6 . . 4 . Storage 3 | . 2 . . . . . 1 . . . . . . . . . . . . Processor 20 | . 1 . 2 . 1 1 . 1 . 1 2 2 1 2 5 . . 1 . Hackware 50 | . . . . 3 1 9 1 12 . 2 4 4 . 5 3 1 . 5 . Protection 9 | . . . . . . . 1 1 . . . 2 1 2 . . . 2 . Artifact . | . . . . . . . . . . . . . . . . . . . . Weapon 43 | . 8 1 1 3 2 3 1 2 1 . 1 1 2 . 7 1 . 8 1 Energy Gun 7 | . 3 . . . 1 . . 1 . . . . . . . . . 2 . Energy Cannon 6 | . . . . . . . . . 1 . . . 2 . 1 . . 2 . Ballistic Gun 13 | . . . 1 2 . 1 . . . . . . . . 6 . . 2 1 Ballistic Cannon 2 | . . . . . . . . . . . . 1 . . . . . 1 . Launcher 4 | . 2 1 . 1 . . . . . . . . . . . . . . . Special Weapon 4 | . . . . . . . 1 1 . . 1 . . . . 1 . . . Impact Weapon 1 | . 1 . . . . . . . . . . . . . . . . . . Slashing Weapon 2 | . . . . . . 2 . . . . . . . . . . . . . Piercing Weapon 1 | . . . . . . . . . . . . . . . . . . 1 . Special Melee Weapon 3 | . 2 . . . 1 . . . . . . . . . . . . . . Unidentified Prototypes 9 | . . . 1 . 1 . . 1 . . . . 1 . 1 . . 4 . Corrupted Parts 1 | . . . . . . . . . . . . . . . 1 . . . . System Corruption 13 | . . . . . . . . . . . . . . . 13 . . . . Parts Lost 92 | . 4 1 . . 1 15 . 5 . . 3 9 . 1 20 2 1 18 12 Power 11 | . . . . . . 1 . 1 . . . . . . 4 . . 3 2 Propulsion 30 | . 1 1 . . . 9 . 1 . . . 5 . . 4 1 . 4 4 Utility 34 | . . . . . 1 3 . 2 . . 1 3 . 1 8 1 . 10 4 Weapon 17 | . 3 . . . . 2 . 1 . . 2 1 . . 4 . 1 1 2 Highest Loss Streak 17 | . 2 1 . . 1 4 . 1 . . 1 5 . 1 10 2 1 17 11 To Critical Strikes . | . . . . . . . . . . . . . . . . . . . . Average Backups 12 | . 11 12 9 10 10 11 13 13 15 14 14 14 14 14 14 14 13 12 3 Power 1 | . 2 3 2 2 . . . . . . . 1 1 2 1 1 . . . Propulsion . | . 1 . . . . . . . . . . . . . 1 4 4 3 . Utility 8 | . 3 4 3 5 7 7 10 11 13 12 11 10 12 11 9 7 7 6 1 Weapon 1 | . 3 5 2 1 1 1 1 . . . . . . . 1 . . . 1 Tool/Special . | . . . . . . . . . . . . . . . . . . . . Unused Backups 39 | . 11 2 3 9 . . . 8 . . . . . 1 2 . . 2 1 Power 5 | . 2 . . 3 . . . . . . . . . . . . . . . Propulsion 9 | . 6 1 . . . . . . . . . . . . . . . 2 . Utility 18 | . 2 . 2 4 . . . 6 . . . . . 1 2 . . . 1 Weapon 5 | . 1 1 1 1 . . . 1 . . . . . . . . . . . Tool/Special 2 | . . . . 1 . . . 1 . . . . . . . . . . . Average Slot Usage (%) 85 | . 93 65 68 96 99 89 95 81 86 91 89 84 86 87 81 89 88 81 50 Engine 4 | . 14 14 9 9 9 2 . 3 . . . . . . 3 . . . . Core 3 | . . . . . . 6 7 3 7 7 6 6 4 5 5 10 10 3 . Treads 4 | . . . . . . . . 14 15 15 6 3 11 11 5 . . . . Leg 12 | . 26 6 . 28 36 30 30 . . . . 9 . . 6 15 20 16 . Wheel 1 | . . . 2 2 . . . . 1 7 12 7 . . . . . . . Device 6 | . 6 8 15 5 . . 2 4 . . 2 . 4 12 12 15 15 16 8 Storage 7 | . 16 14 9 9 9 9 7 7 7 7 6 6 5 5 5 5 5 3 . Processor 6 | . 3 5 8 12 5 8 . . . 1 3 9 14 4 5 21 21 12 9 Hackware 17 | . . . . 9 21 13 23 27 38 35 36 28 23 22 21 10 10 9 17 Protection 2 | . . . . . . . 6 3 . . . 4 6 10 5 . . 2 . Energy Gun 1 | . 15 . . . . . . 2 5 . . . . . . . . 1 . Energy Cannon 1 | . . . . . . . . . 1 7 . . 9 10 3 . . . . Ballistic Gun 3 | . . . 7 16 18 6 . . . . . . . . 4 8 5 4 . Impact Weapon 1 | . 7 5 7 1 . . . . . . . . . . . . . . . Slashing Weapon 2 | . . . . . . 9 8 6 7 6 6 6 1 . . . . . . Special Melee Weapon 1 | . 1 8 1 . . . 5 1 . . 4 . . . . . . . . Peak Build Rating 122 | . 12 10 28 37 37 40 40 71 66 61 62 66 86 94 103 90 80 122 90 Average Rating 51 | . 9 8 18 31 36 32 35 63 58 56 57 52 80 88 83 80 79 97 59 On Entrance 50 | 6 6 9 9 28 37 37 31 35 66 56 56 42 66 86 91 90 80 80 90 Naked Turns . | . . . . . . . . . . . . . . . . . . . . Heaviest Build 93 | 13 34 33 35 37 37 37 39 50 34 35 35 41 68 70 84 44 39 93 34 Greatest Support 166 | 20 20 10 20 60 60 60 51 150 150 12 48 150 150 150 166 60 80 100 39 Greatest Overweight (x) 11 | . 2 10 11 3 . 3 . . 2 2 2 3 . . 11 . . 2 . Average Overweight (x) . | . . 6 6 . . . . . . 2 . . . . . . . . . Largest Inventory Capacity 15 | . 15 15 15 15 15 15 15 15 15 15 15 15 15 15 15 15 15 15 5 Average Capacity 14 | . 12 15 15 15 15 15 15 15 15 15 15 15 15 15 15 15 15 13 5 Most Carried 15 | . 15 15 15 15 15 15 15 15 15 15 15 15 15 15 15 15 14 15 4 Average Carried 14 | . 11 14 14 14 14 14 15 14 15 14 14 14 14 14 14 14 13 12 3 Final Capacity 15 | 8 15 15 15 15 15 15 15 15 15 15 15 15 15 15 15 15 15 5 5 Final Carried 15 | 6 14 15 15 15 14 15 15 15 15 15 15 15 15 15 15 14 14 3 3 Class Distribution -------------------- 36% | Botlord-Mutant 30% | Bothacker-Mutant 12% | Mutant 11% | Trapper-Mutant 5% | Scavenger-Mutant Dominant Class ---------------- Mutant | -10/Materials Mutant | -10/Subcaves Trapper-Mutant | -8/Materials Trapper-Mutant | -8/Garrison Bothacker-Mutant | -8/Materials Bothacker-Mutant | -8/Garrison Bothacker-Mutant | -7/Factory Bothacker-Mutant | -7/Garrison Botlord-Mutant | -7/Factory Botlord-Mutant | -7/DSF Botlord-Mutant | -6/Factory Botlord-Mutant | -6/Garrison Botlord-Mutant | -5/Factory Botlord-Mutant | -5/Garrison Botlord-Mutant | -4/Factory Botlord-Mutant | -4/Upper Caves Scavenger-Mutant | -4/Upper Caves Botlord-Gunner | -3/Research Scavenger-Mutant | -3/Garrison Resources | -11 -10 -10 -8 -8 -8 -8 -7 -7 -7 -7 -6 -6 -5 -5 -4 -4 -4 -3 -3 ----------- Run | Yrd Mat Sub Mat Gar Mat Gar Fac Gar Fac DSF Fac Gar Fac Gar Fac Upp Upp Res Gar Matter Collected 5768 | 200 202 . 68 165 579 726 51 733 . 160 150 455 37 433 814 97 81 737 80 Remotely . | . . . . . . . . . . . . . . . . . . . . Salvage Created 7119 | . 557 . 68 165 612 873 190 1265 . 109 269 585 37 472 813 97 71 793 143 Parts 367 | . 28 . 2 7 44 47 9 60 . 3 12 26 . 17 56 11 4 35 6 Haulers Intercepted 6 | . 1 . . . 2 . . . . 1 1 . . . . . . 1 . Recyclers Shooed 4 | . 1 . . . 1 . . . . . . . . . 2 . . . . Parts Field Recycled . | . . . . . . . . . . . . . . . . . . . . Retrieved Matter . | . . . . . . . . . . . . . . . . . . . . Parts Self-Destructed 20 | . . 3 . . . . . . . . . . . . . 11 6 . . Prevented 1 | . . . . . . . . . . . . . . . . 1 . . . Kills | -11 -10 -10 -8 -8 -8 -8 -7 -7 -7 -7 -6 -6 -5 -5 -4 -4 -4 -3 -3 ------- Run | Yrd Mat Sub Mat Gar Mat Gar Fac Gar Fac DSF Fac Gar Fac Gar Fac Upp Upp Res Gar Combat Hostiles Destroyed 108 | . 15 . 1 . 8 17 4 17 . 1 1 5 . 8 11 4 1 11 4 Melee 24 | . 2 . 1 . . 5 . 7 . 1 1 3 . . . . . 3 1 Guns 39 | . 5 . . . 8 8 . . . . . . . . 8 4 1 4 1 Cannons 17 | . . . . . . . . . . . . 2 . 6 3 . . 4 2 AOE 22 | . 5 . . . . 3 4 10 . . . . . . . . . . . Classes Destroyed 17 | . 6 . 2 . 2 2 1 2 . . . 1 . . . . . 1 . Worker 3 | . 1 . . . 1 . . . . . . . . . 1 . . . . Builder 9 | . 4 . . . 2 . 1 . . . . . . . 2 . . . . Tunneler 1 | . . . . . . . . . . . . . . . . . . 1 . Hauler 6 | . 1 . . . 2 . . . . 1 1 . . . . . . 1 . Recycler 2 | . . . . . . . 1 . . . 1 . . . . . . . . Mechanic 3 | . . . 1 1 1 . . . . . . . . . . . . . . Operator 3 | . 3 . . . . . . . . . . . . . . . . . . Watcher 4 | . . . . . 1 . . 1 . . . . 1 . . . . 1 . Swarmer 26 | . 6 . . . 2 2 . 5 . . . . . 1 2 4 . 1 3 Cutter 2 | . . . . . . 2 . . . . . . . . . . . . . Grunt 36 | . 9 . . . 2 7 3 4 . . 1 2 . 1 1 . 1 5 . Brawler 3 | . . . . . . . . 2 . 1 . . . . . . . . . Duelist 1 | . . . . . . . . . . . . 1 . . . . . . . Sentry 13 | . . . . . 3 1 1 1 . . . 2 . 3 . . . 2 . Specialist 3 | . . . . . . . . 2 . . . . . . . . . . 1 Hunter 14 | . . . 1 . 1 1 . . . . . 1 . 3 4 . . 3 . Programmer 11 | . . . . . . 4 . 3 . . . . . . 4 . . . . Thug 1 | . . . . . . . . . . . . . . . 1 . . . . Best Kill Streak 9 | . 6 . 1 1 6 7 6 9 . 2 1 3 1 2 5 3 1 4 2 Combat Bots Only 7 | . 3 . 1 . 4 7 4 7 . 1 1 3 . 2 4 3 1 2 2 Max Kills in Single Turn 4 | . 2 . 1 1 2 2 4 3 . 1 1 1 1 1 1 1 1 1 1 Gunslinging 1 | . . . . . 1 . . . . . . . . . . . . . . Exploded 3 | . 2 . . . . 2 3 3 . . . . . . . . . . . Melee 1 | . 1 . 1 . . 1 . 1 . 1 1 1 . . . . . 1 1 Uniques/NPCs Destroyed . | . . . . . . . . . . . . . . . . . . . . Combat | -11 -10 -10 -8 -8 -8 -8 -7 -7 -7 -7 -6 -6 -5 -5 -4 -4 -4 -3 -3 -------- Run | Yrd Mat Sub Mat Gar Mat Gar Fac Gar Fac DSF Fac Gar Fac Gar Fac Upp Upp Res Gar Hostile Shots Fired 1417 | . 65 . 36 . 38 132 41 167 . 6 25 107 . 83 280 23 10 259 145 Missed 499 | . 17 . 12 . 12 35 18 44 . 3 6 43 . 21 96 12 4 106 70 Hits 918 | . 48 . 24 . 26 97 23 123 . 3 19 64 . 62 184 11 6 153 75 Melee 5 | . . . . . . . . 3 . . 1 . . 1 . . . . . Projectile 913 | . 48 . 24 . 26 97 23 120 . 3 18 64 . 61 184 11 6 153 75 AOE 2 | . . . . . . 2 . . . . . . . . . . . . . Critical Strikes 33 | . . . . . 1 3 . 1 . . 2 . . 4 13 . 2 6 1 Actively Blocked 1 | . . . . . . . . . . . . . . . . . . . 1 Part Disruptions 3 | . . . . . . . . . . . 1 . . . 2 . . . . Damage Taken 16059 | . 571 54 376 . 276 1700 264 1808 . 195 466 937 . 1207 3449 201 113 3127 1315 Core 2992 | . 103 18 65 . 28 321 21 172 . 16 25 207 . 102 578 17 . 907 412 Absorbed by Shields 71 | . . . . . . 47 . . . . . . . . . . . . 24 Reduced by Siege Mode 99 | . . . . . . . . . . . . . . . 99 . . . . Ignored by Resistances 133 | . . . . . . . . . . . . . . 111 22 . . . . Regen/Repaired (Parts) 189 | . . . . . . . . . . . . . . . 189 . . . . Core Remaining (%) 64 | 100 . 51 . . . 24 . . . 70 . 72 . 89 . . 48 . . Volleys Fired 391 | . 21 . 5 22 27 41 9 32 . 5 3 38 7 46 70 8 5 32 20 Largest 3 | . 2 . 1 2 2 2 1 1 . 1 1 1 2 2 2 2 2 3 2 Hottest 194 | . 80 . 23 51 61 61 30 30 . 80 5 48 188 188 179 60 60 194 84 Shots Fired 615 | . 38 . 5 31 53 66 9 32 . 5 3 38 14 78 109 15 5 88 26 Gun 336 | . 33 . 5 31 53 60 . . . . . . . . 80 14 5 49 6 Cannon 175 | . . . . . . . . . . 1 . 19 14 64 18 . . 39 20 Launcher 30 | . 5 . . . . 6 2 17 . . . . . . . . . . . Special 74 | . . . . . . . 7 15 . 4 3 19 . 14 11 1 . . . Kinetic 359 | . . . 5 31 53 60 . . . . . 19 . . 80 14 5 66 26 Thermal 116 | . . . . . . . . . . 1 . . 14 64 15 . . 22 . Explosive 30 | . 5 . . . . 6 2 17 . . . . . . . . . . . Electromagnetic 36 | . 33 . . . . . . . . . . . . . 3 . . . . Robot Hit Streak 20 | . 6 . 3 19 20 10 3 8 . 5 8 7 5 18 20 3 8 8 7 Robot Miss Streak 11 | . 2 . 1 . 3 2 2 2 . . . 5 . 2 11 3 . 5 5 Penetration Max 2 | . . . . . 2 1 . . . . . 1 . . 2 . . 1 1 Secondary Targets 7 | . 1 . . . 1 2 . . . . . . . . 2 1 . . . Max Gunslinging Chain 1 | . 1 . . . 1 1 . . . . . . . . 1 1 . . . Shots Hit Robots 546 | . 34 . 16 16 35 58 8 80 . 10 36 44 2 47 71 6 5 57 21 Core Hits 240 | . 24 . 4 10 20 26 9 39 . 2 4 12 3 13 28 4 2 32 8 Critical Kills 33 | . . . . 1 10 4 . . . . . 2 . 2 8 2 1 2 1 Critical Parts Destroyed 40 | . 2 . 1 . 10 4 . . . . . 4 . . 15 1 . 3 . Critical Strikes 98 | . 2 . 1 1 20 8 . 5 . . 1 9 . 2 23 3 1 15 7 Meltdown 2 | . . . . . . . . . . . . . . 2 . . . . . Destroy 69 | . . . 1 1 20 8 . . . . . 6 . . 23 3 1 5 1 Blast 9 | . . . . . . . . . . . . . . . . . . 5 4 Smash 2 | . 2 . . . . . . . . . . . . . . . . . . Sever 9 | . . . . . . . . 5 . . 1 3 . . . . . . . Impale 7 | . . . . . . . . . . . . . . . . . . 5 2 Melee Attacks 253 | . 15 . 16 1 1 43 4 82 . 5 37 28 1 . . . . 10 10 Impact 31 | . 15 . 15 1 . . . . . . . . . . . . . . . Slashing 158 | . . . . . . 36 2 78 . 5 8 28 1 . . . . . . Piercing 20 | . . . . . . . . . . . . . . . . . . 10 10 Sneak Attacks 44 | . 4 . 2 . 1 . 2 4 . 2 25 4 . . . . . . . Combat Hostiles 5 | . . . . . . . . 2 . . . 3 . . . . . . . Follow-up Attacks 2 | . . . . . . 1 1 . . . . . . . . . . . . Damage Inflicted 16332 | . 1378 . 538 278 558 1655 677 3698 . 249 332 1493 158 1162 1101 127 112 1917 899 Guns 3601 | . 257 . 63 260 543 606 . . . . . . . . 722 127 112 821 90 Cannons 3092 | . . . . . . . . . . 24 . 128 66 1140 378 . . 787 569 Explosions 2400 | . 482 . . . . 365 545 916 . . . . 92 . . . . . . Melee 7163 | . 620 . 475 . . 684 132 2781 . 225 332 1365 . . . . . 309 240 Ramming 76 | . 19 . . 18 15 . . 1 . . . . . 22 1 . . . . Kinetic 4512 | . . . 63 260 543 606 . . . . . 128 . . 722 127 112 1292 659 Thermal 1940 | . 37 . . . . . . . . 24 . . 66 1140 357 . . 316 . Explosive 2271 | . 445 . . . . 365 545 916 . . . . . . . . . . . Electromagnetic 370 | . 257 . . . . . . . . . . . 92 . 21 . . . . Impact 1095 | . 620 . 475 . . . . . . . . . . . . . . . . Slashing 5519 | . . . . . . 684 132 2781 . 225 332 1365 . . . . . . . Piercing 549 | . . . . . . . . . . . . . . . . . . 309 240 Highest Corruption 24 | . . . . . . 9 . . . . 1 1 . 1 24 24 24 . . Average Corruption 8 | . . . . . . 7 . . . . 1 1 . 1 14 24 24 . . Corruption Purged . | . . . . . . . . . . . . . . . . . . . . Corruption Blocked . | . . . . . . . . . . . . . . . . . . . . Effects 93 | . . . . . . 32 . . . . . 4 . 5 20 20 12 . . Message Errors 27 | . . . . . . 10 . . . . . 1 . . 2 9 5 . . Matter Fused 25 | . . . . . . 9 . . . . . 1 . 2 2 7 4 . . Heat Flow Errors 11 | . . . . . . 6 . . . . . . . 1 3 1 . . . Energy Discharges 9 | . . . . . . 1 . . . . . 1 . 2 4 1 . . . Parts Rejected 2 | . . . . . . 1 . . . . . . . . 1 . . . . Data Loss (minor) 6 | . . . . . . 1 . . . . . . . . 2 2 1 . . Data Loss (major) 5 | . . . . . . 1 . . . . . 1 . . 2 . 1 . . Misfires 2 | . . . . . . 1 . . . . . . . . 1 . . . . Alerts 1 | . . . . . . 1 . . . . . . . . . . . . . Misdirections 2 | . . . . . . . . . . . . . . . 2 . . . . Weapon Failures 3 | . . . . . . 1 . . . . . . . . 1 . 1 . . Overload Shots . | . . . . . . . . . . . . . . . . . . . . Overflow Damage 802 | . 336 . . . . 46 112 53 . 10 . 67 7 32 12 . . 28 99 Projectiles 76 | . . . . . . . . . . . . . . 32 12 . . 19 13 Explosions 108 | . 8 . . . . 31 60 2 . . . . 7 . . . . . . Melee 618 | . 328 . . . . 15 52 51 . 10 . 67 . . . . . 9 86 Knockbacks 15 | . 4 . . . . . . . . . . 1 . . . . . 3 7 Impact 4 | . 4 . . . . . . . . . . . . . . . . . . Kinetic 9 | . . . . . . . . . . . . 1 . . . . . 3 5 Secondary 2 | . . . . . . . . . . . . . . . . . . . 2 Self-Inflicted Damage 418 | . 88 . . . . 176 10 77 . . . . . . . . . 67 . Shots 15 | . 4 . . . . 5 1 4 . . . . . . . . . 1 . Rammed 6 | . . . . . . . . 1 . . . . . 4 1 . . . . Targets Rammed 17 | . 6 . . 3 2 . . 1 . . . . . 4 1 . . . . Kicked 11 | . 6 . . 3 2 . . . . . . . . . . . . . . Crushed . | . . . . . . . . . . . . . . . . . . . . Highest Temperature 408 | . 92 . . . 22 264 1 22 . . . 9 288 408 164 108 20 180 9 Average Temperature 72 | . 31 . . . 9 65 1 7 . . . 5 106 98 85 70 13 56 9 Received Heat Transfer 2616 | . 156 . 45 . 63 390 102 249 . 30 54 201 . 360 105 . 83 742 36 Siege Activations 1 | . . . . . . . . . . . . . . . 1 . . . . Total Turns 19 | . . . . . . . . . . . . . . . 19 . . . . Longest Duration 19 | . . . . . . . . . . . . . . . 19 . . . . Martial Activations . | . . . . . . . . . . . . . . . . . . . . Shielding Activations . | . . . . . . . . . . . . . . . . . . . . Robots Disrupted . | . . . . . . . . . . . . . . . . . . . . Combat Hostiles . | . . . . . . . . . . . . . . . . . . . . Robots Corrupted 8 | . 7 . . . 1 . . . . . . . . . . . . . . Combat Hostiles 3 | . 3 . . . . . . . . . . . . . . . . . . Parts Fried 12 | . 8 . . . 1 . . . . . . . 3 . . . . . . Impact Corruptions 16 | . 15 . . . 1 . . . . . . . . . . . . . . Robots Melted 2 | . . . . . . . . . . . . . . 2 . . . . . Combat Hostiles 2 | . . . . . . . . . . . . . . 2 . . . . . Parts Melted 9 | . . . . . . 2 . . . . . . . 5 2 . . . . Heat Transferred 2870 | . 100 . . . . . . . . 50 . . 100 1750 500 . . 370 . Parts Sabotaged . | . . . . . . . . . . . . . . . . . . . . Parts Stolen . | . . . . . . . . . . . . . . . . . . . . Parts Stripped . | . . . . . . . . . . . . . . . . . . . . Power Chain Reactions 1 | . 1 . . . . . . . . . . . . . . . . . . Alert | -11 -10 -10 -8 -8 -8 -8 -7 -7 -7 -7 -6 -6 -5 -5 -4 -4 -4 -3 -3 ------- Run | Yrd Mat Sub Mat Gar Mat Gar Fac Gar Fac DSF Fac Gar Fac Gar Fac Upp Upp Res Gar Maximum Alert Level 4 | . 1 . . 3 3 4 2 4 3 3 2 3 2 3 2 . . 1 . Low Security (%) 22 | . 96 . 100 26 . . . . . . . . . . 24 . . 54 100 Level 1 13 | . 3 . . 21 . . 34 . . . 41 9 81 20 5 . . 45 . Level 2 30 | . . . . 33 46 19 65 22 . 95 58 43 18 47 69 . . . . Level 3 26 | . . . . 17 53 74 . 39 100 4 . 47 . 32 . . . . . Level 4 7 | . . . . . . 6 . 38 . . . . . . . . . . . Level 5 . | . . . . . . . . . . . . . . . . . . . . High Security . | . . . . . . . . . . . . . . . . . . . . Max Security . | . . . . . . . . . . . . . . . . . . . . Sterilizations 1 | . . . . . . . . . . 1 . . . . . . . . . Peak Influence 1538 | . 211 . 30 898 857 1242 651 1538 807 770 632 788 418 1023 536 . . 266 168 Initial 807 | . . . . 17 437 550 651 343 807 529 403 316 413 216 536 . . . 96 Average 543 | . 76 . 2 436 696 872 472 953 783 641 460 632 359 616 362 . . 172 90 Influence Increases 8304 | . 553 . 71 881 670 922 179 1305 . 261 407 682 118 917 453 105 66 530 184 Destroy 0b10 Robot/C 3540 | . 300 . 20 . 380 420 80 500 . 160 120 300 . 440 300 80 60 300 80 Destroy 0b10 Robot/NC 240 | . 45 . 5 15 35 15 10 35 . 5 10 15 15 . 15 . . 20 . Destroy Leader 496 | . 62 . 10 . 96 20 20 10 . 10 42 20 2 50 70 10 . 64 10 Allied During Kill 483 | . . . . 1 95 19 6 65 . 66 35 47 . 91 35 . 6 17 . Trap Triggered on 0b10 40 | . 10 . 10 . . 20 . . . . . . . . . . . . . Successful Hack 97 | . 13 . 11 10 . 14 7 . . . 14 14 . 14 . . . . . Disable Machine 405 | . 30 . 15 . 45 . 30 15 . 15 165 . 45 . 15 . . 30 . Anti-Garrison Action 2200 | . . . . 850 . 350 . 550 . . . 200 . 250 . . . . . Destroy Structure 533 | . 48 . . 5 4 64 26 115 . 5 21 26 56 42 18 . . 84 19 Partial Spotted 15 | . . . . . . . . 15 . . . . . . . . . . . Lose Combat Pursuer 255 | . 45 . . . 15 . . . . . . 60 . 30 . 15 . 15 75 Influence Decreases 8144 | . 372 181 44 10 721 527 931 257 781 248 725 346 597 203 1402 179 66 402 152 Entered New Map 4072 | . . 88 . 10 461 297 591 147 731 228 367 136 375 93 487 29 . . 32 Time Decay 2037 | . 332 93 44 . 190 . 170 . 50 . 198 . 222 . 350 130 56 202 . Lost Part 910 | . 40 . . . 10 150 . 50 . . 30 90 . 10 200 20 10 180 120 Lost Ally 700 | . . . . . 60 80 20 60 . 20 130 120 . 100 90 . . 20 . Purge Threat 425 | . . . . . . . 150 . . . . . . . 275 . . . . Squads Dispatched 22 | . 3 . 1 . 3 . 2 . . 1 4 . . . 4 . . 4 . Investigation 3 | . 2 . 1 . . . . . . . . . . . . . . . . Extermination 4 | . . . . . . . . . . . 1 . . . 2 . . 1 . Reinforcement 12 | . 1 . . . 2 . 1 . . 1 3 . . . 2 . . 2 . Assault . | . . . . . . . . . . . . . . . . . . . . Garrison 3 | . . . . . 1 . 1 . . . . . . . . . . 1 . Intercept . | . . . . . . . . . . . . . . . . . . . . Searches Triggered . | . . . . . . . . . . . . . . . . . . . . Construction Impeded 4 | . . . . . . . 1 . . . 1 . . . 1 . . 1 . Haulers Reinforced 1 | . . . . . . . . . . . . . . . . . . 1 . Active Scanning Responses . | . . . . . . . . . . . . . . . . . . . . Cargo Convoy Interrupts . | . . . . . . . . . . . . . . . . . . . . Alert ID Control Effect 30 | . . . . . . 2 2 6 . 1 13 4 . 1 1 . . . . Stealth | -11 -10 -10 -8 -8 -8 -8 -7 -7 -7 -7 -6 -6 -5 -5 -4 -4 -4 -3 -3 --------- Run | Yrd Mat Sub Mat Gar Mat Gar Fac Gar Fac DSF Fac Gar Fac Gar Fac Upp Upp Res Gar Distress Signals 15 | . 2 . 3 . 3 1 . . . . 2 . . . 3 . . 1 . Communications Jammed . | . . . . . . . . . . . . . . . . . . . . Distress Signals . | . . . . . . . . . . . . . . . . . . . . Times Spotted 318 | . 21 . 12 1 26 32 10 43 . 10 24 37 1 32 25 6 3 20 15 Peak Tracking Total 9 | . 5 . 9 . 5 5 4 5 . 4 7 9 1 7 7 4 3 6 8 Tactical Retreats 10 | . 1 . . . 1 . . . . . . 4 . 1 . 1 . 1 1 Traps | -11 -10 -10 -8 -8 -8 -8 -7 -7 -7 -7 -6 -6 -5 -5 -4 -4 -4 -3 -3 ------- Run | Yrd Mat Sub Mat Gar Mat Gar Fac Gar Fac DSF Fac Gar Fac Gar Fac Upp Upp Res Gar Traps Triggered 14 | . 1 . . 2 . 6 . 1 . 2 . . . 1 . . . . 1 Indirectly . | . . . . . . . . . . . . . . . . . . . . Trap Hack Attempts 167 | . 11 102 . . . . 51 3 . . . . . . . . . . . Triggered 1 | . . 1 . . . . . . . . . . . . . . . . . Disarmed 2 | . . 1 . . . . 1 . . . . . . . . . . . . Reprogrammed 14 | . 4 6 . . . . 3 1 . . . . . . . . . . . Reused 4 | . 1 . 1 . . 2 . . . . . . . . . . . . . Traps Extracted 8 | . 2 6 . . . . . . . . . . . . . . . . . Installed 5 | . . . 1 . . 2 . 2 . . . . . . . . . . . Triggered 4 | . 1 . 1 . . 2 . . . . . . . . . . . . . Most Traps Carried 8 | . 2 8 8 7 7 7 5 5 3 3 3 3 3 3 3 3 3 3 . Machines | -11 -10 -10 -8 -8 -8 -8 -7 -7 -7 -7 -6 -6 -5 -5 -4 -4 -4 -3 -3 ---------- Run | Yrd Mat Sub Mat Gar Mat Gar Fac Gar Fac DSF Fac Gar Fac Gar Fac Upp Upp Res Gar Machines Disabled 50 | . 3 . 1 6 3 4 2 9 . 1 11 2 3 2 1 . . 2 . Max in Single Turn 2 | . 2 . 1 1 1 1 2 1 . . 1 1 2 1 1 . . 1 . Garrison Relay 20 | . . . . 6 . 4 . 6 . . . 2 . 2 . . . . . Phase Generator 1 | . . . . . . . . 1 . . . . . . . . . . . Machines Repaired . | . . . . . . . . . . . . . . . . . . . . Machines Dismantled . | . . . . . . . . . . . . . . . . . . . . Machines Sabotaged . | . . . . . . . . . . . . . . . . . . . . Overloaded Fab Kills . | . . . . . . . . . . . . . . . . . . . . Hacking | -11 -10 -10 -8 -8 -8 -8 -7 -7 -7 -7 -6 -6 -5 -5 -4 -4 -4 -3 -3 --------- Run | Yrd Mat Sub Mat Gar Mat Gar Fac Gar Fac DSF Fac Gar Fac Gar Fac Upp Upp Res Gar Machines Accessed 37 | . 5 . 2 4 1 2 3 3 3 . 2 3 2 3 2 . . 2 . Terminals 27 | . 5 . 1 4 . 2 1 3 2 . 1 3 1 3 1 . . . . Fabricators 1 | . . . . . . . . . . . . . . . 1 . . . . Repair Stations . | . . . . . . . . . . . . . . . . . . . . Recycling Units 2 | . . . . . . . . . 1 . . . . . . . . 1 . Scanalyzers . | . . . . . . . . . . . . . . . . . . . . Garrison Access 7 | . . . 1 . 1 . 2 . . . 1 . 1 . . . . 1 . Total Hacks 93 | . 19 . 3 10 1 7 10 5 5 . 3 7 4 9 8 . . 2 . Successful 45 | . 12 . 2 4 1 1 6 3 3 . 2 1 1 2 6 . . 1 . Failed 48 | . 7 . 1 6 . 6 4 2 2 . 1 6 3 7 2 . . 1 . Catastrophic 14 | . 1 . 1 1 . . 1 1 1 . 1 2 1 3 1 . . . . Database Lockouts . | . . . . . . . . . . . . . . . . . . . . Manual 27 | . 10 . 2 3 . 1 2 2 . . . 2 1 1 3 . . . . Terminals 73 | . 19 . 2 10 . 7 7 5 2 . 2 7 2 9 1 . . . . Fabricators 7 | . . . . . . . . . . . . . . . 7 . . . . Repair Stations . | . . . . . . . . . . . . . . . . . . . . Recycling Units 4 | . . . . . . . . . 3 . . . . . . . . 1 . Scanalyzers . | . . . . . . . . . . . . . . . . . . . . Garrison Access 9 | . . . 1 . 1 . 3 . . . 1 . 2 . . . . 1 . Terminal Hacks 28 | . 10 . 1 4 . 1 4 3 1 . 1 1 . 2 . . . . . Part Schematic 1 | . . . . . . . 1 . . . . . . . . . . . . Robot Analysis 2 | . 1 . 1 . . . . . . . . . . . . . . . . Prototype ID Bank 1 | . . . . . . . 1 . . . . . . . . . . . . Open Door 2 | . . . . 1 . . . 1 . . . . . . . . . . . Open DSF 1 | . . . . . . . . . 1 . . . . . . . . . . Emergency Access Points 5 | . . . . 1 . 1 . 1 . . . 1 . 1 . . . . . Alert Level 1 | . 1 . . . . . . . . . . . . . . . . . . Unreport Threat 1 | . . . . . . . 1 . . . . . . . . . . . . Locate Traps 4 | . 2 . . . . . 1 . . . 1 . . . . . . . . Reprogram Traps 1 | . 1 . . . . . . . . . . . . . . . . . . Transport Status 2 | . 2 . . . . . . . . . . . . . . . . . . Zone Layout 3 | . 3 . . . . . . . . . . . . . . . . . . Garrison Registry 2 | . . . . 1 . . . 1 . . . . . . . . . . . Patrol Navigation 1 | . . . . 1 . . . . . . . . . . . . . . . Security Stations 1 | . . . . . . . . . . . . . . 1 . . . . . Fabricator Hacks 4 | . . . . . . . . . . . . . . . 4 . . . . Load Schematic 2 | . . . . . . . . . . . . . . . 2 . . . . Build 2 | . . . . . . . . . . . . . . . 2 . . . . Repair Station Hacks . | . . . . . . . . . . . . . . . . . . . . Recycling Unit Hacks 2 | . . . . . . . . . 2 . . . . . . . . . . Report Inventory 1 | . . . . . . . . . 1 . . . . . . . . . . Retrieve Components 1 | . . . . . . . . . 1 . . . . . . . . . . Scanalyzer . | . . . . . . . . . . . . . . . . . . . . Garrison Access Hacks 7 | . . . 1 . 1 . 2 . . . 1 . 1 . . . . 1 . Unlock Access 7 | . . . 1 . 1 . 2 . . . 1 . 1 . . . . 1 . Unauthorized Hacks 4 | . 2 . . . . . . . . . . . . . 2 . . . . Terminals 2 | . 2 . . . . . . . . . . . . . . . . . . Botnet 2 | . 2 . . . . . . . . . . . . . . . . . . Fabricators 2 | . . . . . . . . . . . . . . . 2 . . . . Prioritize 1 | . . . . . . . . . . . . . . . 1 . . . . Haulers 1 | . . . . . . . . . . . . . . . 1 . . . . Repair Stations . | . . . . . . . . . . . . . . . . . . . . Recycling Units . | . . . . . . . . . . . . . . . . . . . . Scanalyzers . | . . . . . . . . . . . . . . . . . . . . Garrison Access . | . . . . . . . . . . . . . . . . . . . . Data Cores Recovered 2 | . 2 . . . . . . . . . . . . . . . . . . Used 2 | . 2 . . . . . . . . . . . . . . . . . . Hacking Detections 31 | . 5 . 2 4 . 2 2 3 1 . 1 3 2 3 2 . . 1 . Full Trace Events 7 | . 1 . 1 1 . 1 . . . . . 2 . 1 . . . . . Feedback Events 1 | . . . . . . . . . . . . . . 1 . . . . . Corruption 1 | . . . . . . . . . . . . . . 1 . . . . . Feedback Blocked . | . . . . . . . . . . . . . . . . . . . . Robot Schematics Acquired . | . . . . . . . . . . . . . . . . . . . . Robots Built . | . . . . . . . . . . . . . . . . . . . . Authchips . | . . . . . . . . . . . . . . . . . . . . Time . | . . . . . . . . . . . . . . . . . . . . Total Robot Build Rating . | . . . . . . . . . . . . . . . . . . . . Part Schematics Acquired 1 | . . . . . . . 1 . . . . . . . . . . . . Parts Built 4 | . . . . . . . . . . . . . . . 4 . . . . Authchips 2 | . . . . . . . . . . . . . . . 2 . . . . Time 94 | . . . . . . . . . . . . . . . 94 . . . . Total Part Build Rating 20 | . . . . . . . . . . . . . . . 20 . . . . Parts Repaired . | . . . . . . . . . . . . . . . . . . . . Time . | . . . . . . . . . . . . . . . . . . . . Parts Recycled . | . . . . . . . . . . . . . . . . . . . . Recycled Matter . | . . . . . . . . . . . . . . . . . . . . Retrieved Matter . | . . . . . . . . . . . . . . . . . . . . Retrieved Components 1 | . . . . . . . . . 1 . . . . . . . . . . Parts Scanalyzed . | . . . . . . . . . . . . . . . . . . . . Part Schematics Acquired . | . . . . . . . . . . . . . . . . . . . . Parts Damaged . | . . . . . . . . . . . . . . . . . . . . Bothacking | -11 -10 -10 -8 -8 -8 -8 -7 -7 -7 -7 -6 -6 -5 -5 -4 -4 -4 -3 -3 ------------ Run | Yrd Mat Sub Mat Gar Mat Gar Fac Gar Fac DSF Fac Gar Fac Gar Fac Upp Upp Res Gar Used RIF Installer 6 | . . . . 1 . 2 . 1 . . . . . 1 . . . . 1 Coupler Efficiency 1 | . . . . . . 1 . . . . . . . . . . . . . Alert ID Control 1 | . . . . . . 1 . . . . . . . . . . . . . Structural Interface 1 | . . . . . . . . . . . . . . . . . . . 1 Program Shield 1 | . . . . . . . . 1 . . . . . . . . . . . Autooverride 1 | . . . . . . . . . . . . . . 1 . . . . . Robots Hacked 72 | . . . . . 1 5 5 11 . 3 19 13 . 9 5 1 . . . Non-combat 17 | . . . . . 1 . . . . . 12 . . . 4 . . . . Combat 55 | . . . . . . 5 5 11 . 3 7 13 . 9 1 1 . . . Robot Hacks Applied 93 | . . . . . 1 5 6 12 . 3 29 14 . 12 10 1 . . . parse_system 4 | . . . . . . . . . . . 3 1 . . . . . . . generate_echo 2 | . . . . . . . . . . . 2 . . . . . . . . map_walls 4 | . . . . . . . . . . . 3 . . . 1 . . . . find_fabricator 3 | . . . . . . . . . . . 3 . . . . . . . . find_dsf 2 | . . . . . . . . . . . 2 . . . . . . . . drop_inventory 3 | . . . . . 1 . . . . . 2 . . . . . . . . locate_stockpiles 1 | . . . . . . . . . . . 1 . . . . . . . . find_recycling 3 | . . . . . . . . . . . 3 . . . . . . . . ignore_parts 1 | . . . . . . . . . . . . . . . 1 . . . . purge_threat 2 | . . . . . . . . . . . . . . . 2 . . . . locate_traps 1 | . . . . . . . . . . . . . . . 1 . . . . reprogram_traps 2 | . . . . . . . . . . . . . . . 2 . . . . find_shortcuts 1 | . . . . . . . . . . . . . . 1 . . . . . show_paths 2 | . . . . . . . 1 1 . . . . . . . . . . . link_fov 4 | . . . . . . . . . . . 3 . . . 1 . . . . scatter_targeting 1 | . . . . . . . 1 . . . . . . . . . . . . mark_system 1 | . . . . . . . . . . . . 1 . . . . . . . link_complan 1 | . . . . . . . . . . . . 1 . . . . . . . disrupt_area 1 | . . . . . . 1 . . . . . . . . . . . . . spike_heat 2 | . . . . . . . 1 1 . . . . . . . . . . . amplify_resonance 16 | . . . . . . . 1 2 . 1 . 6 . 5 1 . . . . reboot_system 2 | . . . . . . . . . . . . 1 . 1 . . . . . overwrite_iff 9 | . . . . . . . . 3 . 1 1 1 . 3 . . . . . formatsys_low 2 | . . . . . . . . . . . 1 . . . 1 . . . . formatsys_high 23 | . . . . . . 4 2 5 . 1 5 3 . 2 . 1 . . . Relay Couplers Released 88 | . . . . 23 . 20 . 29 . . . 7 . 9 . . . . . Machine Destruction 81 | . . . . 23 . 17 . 25 . . . 7 . 9 . . . . . Programmers 7 | . . . . . . 3 . 4 . . . . . . . . . . . Attached 46 | . . . . 1 1 9 1 12 . 2 4 4 . 5 1 1 . 5 . Fabnet Peak Effective % . | . . . . . . . . . . . . . . . . . . . . Robots Rewired 18 | . . . . 6 . . . 2 . . . 4 . 6 . . . . . Allies Hacked 2 | . . . . . . . . . . . . . . . 2 . . . . Hacks Repelled . | . . . . . . . . . . . . . . . . . . . . Allies | -11 -10 -10 -8 -8 -8 -8 -7 -7 -7 -7 -6 -6 -5 -5 -4 -4 -4 -3 -3 -------- Run | Yrd Mat Sub Mat Gar Mat Gar Fac Gar Fac DSF Fac Gar Fac Gar Fac Upp Upp Res Gar Total Allies 55 | . . . . 7 . 4 2 12 . 2 7 8 . 11 1 1 . . . Largest Group 8 | . . . . 7 7 2 1 7 7 8 4 3 1 6 6 1 1 1 . Highest-Rated Group 408 | . . . . 104 104 32 32 318 318 408 202 131 85 213 213 116 116 116 . Highest-Rated Ally 116 | . . . . 31 31 16 32 80 80 90 90 85 85 85 51 116 116 116 . Total Orders 5 | . . . . . . . . . . 1 1 . . 2 1 . . . . STAY 2 | . . . . . . . . . . 1 . . . 1 . . . . . FOLLOW 1 | . . . . . . . . . . . . . . 1 . . . . . AID 2 | . . . . . . . . . . . 1 . . . 1 . . . . Ally Attacks 369 | . . . . . 55 35 6 45 . 23 53 47 . 41 48 . 4 12 . Total Damage 10601 | . . . . . 770 513 188 1228 . 1044 2857 1234 . 1272 746 . 136 613 . Kills 106 | . . . . . 12 6 2 14 . 9 19 14 2 15 6 . 2 5 . Allies Corrupted 2 | . . . . . . . . . . . . . . . 2 . . . . Allies Melted . | . . . . . . . . . . . . . . . . . . . . Intel | -11 -10 -10 -8 -8 -8 -8 -7 -7 -7 -7 -6 -6 -5 -5 -4 -4 -4 -3 -3 ------- Run | Yrd Mat Sub Mat Gar Mat Gar Fac Gar Fac DSF Fac Gar Fac Gar Fac Upp Upp Res Gar Active Infowar (turns) 4598 | . . . 547 747 . . 126 1426 . . 181 122 299 . 149 366 210 425 . Optics 138 | . . . . . . . . 86 . . . . . . . . . 52 . Sensors 1754 | . . . 547 747 . . . . . . 161 . 299 . . . . . . Terrain 83 | . . . . . . . . . . . . . . . 83 . . . . Structural 1032 | . . . . . . . . . . . . . . . 66 366 210 390 . T.N.C. 142 | . . . . . . . . . . . 20 122 . . . . . . . Jamming 1552 | . . . . . . . 126 1426 . . . . . . . . . . . Robot Analysis Total 2 | . 1 . 1 . . . . . . . . . . . . . . . . Derelict Logs Recovered 1 | . . . . . . . . . . . . . . . . 1 . . . Drone Launches . | . . . . . . . . . . . . . . . . . . . . Drone Recoveries . | . . . . . . . . . . . . . . . . . . . . Exploration | -11 -10 -10 -8 -8 -8 -8 -7 -7 -7 -7 -6 -6 -5 -5 -4 -4 -4 -3 -3 ------------- Run | Yrd Mat Sub Mat Gar Mat Gar Fac Gar Fac DSF Fac Gar Fac Gar Fac Upp Upp Res Gar Turns Passed 13153 | . 1077 624 650 1340 385 1243 359 2090 113 210 410 862 466 1303 783 366 210 496 166 Spaces Moved 6779 | 1 543 77 147 876 237 687 218 1074 67 113 283 561 258 591 312 231 131 272 100 Core 170 | . . 51 78 . . . . . . . . . . . 4 . . 1 36 Treads 2150 | . . . . . . . . 1055 49 . . 26 258 591 171 . . . . Legs 3400 | 1 543 26 . 762 237 645 218 19 . . . 231 . . 135 231 131 221 . Wheels 881 | . . . 47 114 . . . . 18 113 283 304 . . 2 . . . . Hover 110 | . . . . . . 42 . . . . . . . . . . . 50 18 Flight 68 | . . . 22 . . . . . . . . . . . . . . . 46 Fastest Speed 30 | 120 120 260 95 95 120 120 120 120 120 120 87 87 160 160 120 120 120 30 37 Average Speed 144 | 120 166 433 385 125 120 132 120 159 149 120 103 111 160 160 146 120 120 106 43 Slowest Speed 600 | 120 260 550 600 330 120 260 120 160 160 120 120 190 160 160 600 120 120 150 50 Overloaded Moves 3 | . . . . . . . . . . . . . . . . . . 2 1 Propulsion Burnouts . | . . . . . . . . . . . . . . . . . . . . Robots Hopped . | . . . . . . . . . . . . . . . . . . . . Potential Cave-ins . | . . . . . . . . . . . . . . . . . . . . Cave-ins Triggered . | . . . . . . . . . . . . . . . . . . . . Exploration Rate (%) 36 | 2 78 6 15 98 25 79 8 96 1 82 10 69 9 53 6 49 20 7 13 Regions Visited 19 Branch Regions 3 Pre-discovered Areas 2 | . . 1 . . . . . . . . . . . . . 1 . . . Known Exits Taken 8 | . 1 . 1 . 1 . 1 . 1 . 1 . 1 . . . . 1 . Unknown Exits Taken 5 | 1 . 1 . . . . . . . . . . . . 1 1 1 . . Scrap Searched 1 | . . . . . . . . . . . . . . . . 1 . . . Spaces Dug 49 | . . . . . . 2 26 13 . . 1 . 6 . . . . . 1 Terrain Destroyed 316 | . 50 . . . 2 9 31 149 . . 1 1 11 4 4 . . 47 7 Melee 4 | . . . . . . 2 . . . . 1 . . . . . . . 1 Projectile 40 | . . . . . . . . . . . . 1 11 4 4 . . 14 6 AOE 270 | . 50 . . . . 7 31 149 . . . . . . . . . 33 . Terrain Rammed . | . . . . . . . . . . . . . . . . . . . . Walls Destroyed . | . . . . . . . . . . . . . . . . . . . . Machines Disabled . | . . . . . . . . . . . . . . . . . . . . Actions | -11 -10 -10 -8 -8 -8 -8 -7 -7 -7 -7 -6 -6 -5 -5 -4 -4 -4 -3 -3 --------- Run | Yrd Mat Sub Mat Gar Mat Gar Fac Gar Fac DSF Fac Gar Fac Gar Fac Upp Upp Res Gar Total 9211 | . 652 374 198 1093 281 906 304 1320 79 174 383 729 293 874 517 305 176 379 174 Wait 764 | . 4 182 . 84 2 35 11 30 9 39 33 24 12 105 61 63 35 1 34 Move 6764 | . 542 76 147 875 236 686 218 1073 66 112 283 560 257 590 311 230 130 272 100 Hop . | . . . . . . . . . . . . . . . . . . . . Pick Up 131 | . 19 6 7 19 1 14 . 20 . 2 4 6 2 7 14 . 1 8 1 Fast Attach 123 | . 3 1 6 5 . 18 3 9 2 1 5 15 4 6 21 . 1 19 4 Attach 56 | . 2 1 . 4 1 5 . 6 . 1 5 9 2 1 12 1 . 3 3 Detach 37 | . . 1 . 3 . 3 . 4 . 2 1 9 . 6 3 1 . 2 2 Swap 169 | . 14 1 7 8 9 24 6 24 1 7 5 4 5 19 15 1 3 16 . Drop 149 | . 15 4 9 26 2 18 1 24 1 . 3 10 3 7 9 . 1 16 . Fire 391 | . 21 . 5 22 27 41 9 32 . 5 3 38 7 46 70 8 5 32 20 Melee 249 | . 15 . 16 1 1 40 3 82 . 5 37 28 1 . . . . 10 10 Ram 1 | . . . . . . . . . . . . . . . 1 . . . . Kick 11 | . 6 . . 3 2 . . . . . . . . . . . . . . Crush 5 | . . . . . . . . 1 . . . . . 4 . . . . . Escape Stasis 16 | . . . . . . 16 . . . . . . . . . . . . . Rewire 173 | . . . . 43 . 4 2 10 . . 4 26 . 83 . 1 . . . Trap 172 | . 11 102 1 . . 2 51 5 . . . . . . . . . . . Miscellaneous . | . . . . . . . . . . . . . . . . . . . . Route ------- -11/Scrapyard -10/Materials (discovered 5 exits: *Mat x3 / *Min / *Sub) -10/Subcaves -8/Materials -8/Garrison (discovered 3 exits: *Mat x3) -8/Materials -8/Garrison -7/Factory (discovered 2 exits: Gar / Gar) -7/Garrison (discovered 3 exits: *Fac x3) -7/Factory -7/DSF -6/Factory -6/Garrison (discovered 2 exits: *Fac x2) -5/Factory -5/Garrison -4/Factory -4/Upper Caves -4/Upper Caves -3/Research -3/Garrison History --------- Turn | Location | Event 1 | -11/Scrapyard | Discovered new exit (range 0) 1 | -11/Scrapyard | Entered Materials 144 | -10/Materials | Discovered new exit (range 14) 334 | -10/Materials | Build established: Mutant 362 | -10/Materials | Discovered new exit (range 3) 639 | -10/Materials | Discovered new exit (range 10) 853 | -10/Materials | Discovered new exit (range 15) 925 | -10/Materials | Identified exit to Mines 1026 | -10/Materials | Discovered new exit (range 7) 1028 | -10/Materials | Identified exit to Materials 1044 | -10/Materials | Identified exit to Subcaves 1078 | -10/Materials | Entered Subcaves 1090 | -10/Subcaves | Learned location of Zion (-7) 1090 | -10/Subcaves | Met a Zionite searching for "candidates" 1658 | -10/Subcaves | Discovered new exit (range 9) 1702 | -10/Subcaves | Entered Materials 1702 | -8/Materials | Evolved 4 slots: Propulsion x2, Utility x2 1873 | -8/Materials | Build established: Trapper-Mutant 2352 | -8/Materials | Identified exit to Garrison 2352 | -8/Materials | Entered Garrison 2352 | -8/Garrison | Discovered recently destroyed garrison 2399 | -8/Garrison | Garrison Relay disabled 2710 | -8/Garrison | Garrison Relay disabled 2737 | -8/Garrison | Discovered new exit (range 16) 2894 | -8/Garrison | Discovered new exit (range 9) 2922 | -8/Garrison | Garrison Relay disabled 2937 | -8/Garrison | Garrison Relay disabled 3018 | -8/Garrison | Rescued a captive Derelict 3062 | -8/Garrison | Discovered new exit (range 15) 3080 | -8/Garrison | Identified exit to Materials 3190 | -8/Garrison | Garrison Relay disabled 3202 | -8/Garrison | Installed Relay Interface Framework 3290 | -8/Garrison | Garrison Relay disabled 3325 | -8/Garrison | Discovered exit to Materials (range 26) 3325 | -8/Garrison | Discovered exit to Materials (range 72) 3325 | -8/Garrison | Discovered exit to Materials (range 102) 3593 | -8/Garrison | Build established: Bothacker-Mutant 3692 | -8/Garrison | Entered Materials 3692 | -8/Materials | Accompanied by 7 allies 3887 | -8/Materials | Identified exit to Garrison 4027 | -8/Materials | Garrison activated, responded to threat 4077 | -8/Materials | Entered Garrison 4179 | -8/Garrison | Expanded RIF knowledge: Coupler Efficiency 4239 | -8/Garrison | Triggered checkpoint 4263 | -8/Garrison | Triggered checkpoint 4366 | -8/Garrison | Destroyed 7 combat bots 4393 | -8/Garrison | Lost 3 parts (1n1u1w) 4483 | -8/Garrison | Triggered checkpoint 4541 | -8/Garrison | Lost 3 parts (2n1w) 4574 | -8/Garrison | Expanded RIF knowledge: Alert ID Control 4709 | -8/Garrison | Triggered checkpoint 4751 | -8/Garrison | Triggered checkpoint 4784 | -8/Garrison | Garrison Relay disabled 4796 | -8/Garrison | Lost 4 parts (1p2n1u) 4888 | -8/Garrison | Core integrity fell below 50% 4930 | -8/Garrison | Lost 4 parts (3n1u) 5091 | -8/Garrison | Triggered checkpoint 5117 | -8/Garrison | Triggered checkpoint 5193 | -8/Garrison | Garrison Relay disabled 5243 | -8/Garrison | Garrison Relay disabled 5297 | -8/Garrison | Discovered new exit (range 14) 5320 | -8/Garrison | Entered Factory 5320 | -7/Factory | Evolved 2 slots: Utility x2 5470 | -7/Factory | Identified exit to Garrison 5663 | -7/Factory | Garrison activated, responded to threat 5679 | -7/Factory | Identified exit to Garrison 5679 | -7/Factory | Entered Garrison 5679 | -7/Garrison | Accompanied by 1 ally 5704 | -7/Garrison | Destroyed 7 combat bots 5953 | -7/Garrison | Triggered checkpoint 5958 | -7/Garrison | Triggered checkpoint 6075 | -7/Garrison | Discovered new exit (range 15) 6110 | -7/Garrison | Phase Generator disabled 6143 | -7/Garrison | Triggered checkpoint 6174 | -7/Garrison | Garrison Relay disabled 6305 | -7/Garrison | Triggered checkpoint 6313 | -7/Garrison | Triggered checkpoint 6361 | -7/Garrison | P-60 Hacker assimilated allied Guardian 4b 6561 | -7/Garrison | Discovered new exit (range 14) 6701 | -7/Garrison | Triggered checkpoint 6777 | -7/Garrison | Triggered checkpoint 6794 | -7/Garrison | Discovered new exit (range 14) 6943 | -7/Garrison | Triggered checkpoint 6968 | -7/Garrison | Garrison Relay disabled 7187 | -7/Garrison | Garrison Relay disabled 7268 | -7/Garrison | Triggered checkpoint 7299 | -7/Garrison | Garrison Relay disabled 7325 | -7/Garrison | Expanded RIF knowledge: Program Shield 7399 | -7/Garrison | Triggered checkpoint 7423 | -7/Garrison | Garrison Relay disabled 7597 | -7/Garrison | Build established: Botlord-Mutant 7639 | -7/Garrison | Found embedded Infiltrators 7662 | -7/Garrison | Garrison Relay disabled 7719 | -7/Garrison | Discovered new exit (range 56) 7719 | -7/Garrison | Discovered new exit (range 69) 7719 | -7/Garrison | Discovered new exit (range 12) 7769 | -7/Garrison | Entered Factory 7769 | -7/Factory | Accompanied by 7 allies 7873 | -7/Factory | Identified exit to DSF 7882 | -7/Factory | Entered DSF 7882 | -7/DSF | Accompanied by 7 allies 7905 | -7/DSF | Additional patrols routed to DSF 8009 | -7/DSF | Discovered new exit (range 15) 8091 | -7/DSF | Sterilization system engaged 8092 | -7/DSF | Entered Factory 8092 | -6/Factory | Accompanied by 2 allies 8092 | -6/Factory | Evolved 2 slots: Utility x2 8422 | -6/Factory | Lost 3 allies 8502 | -6/Factory | Identified exit to Garrison 8502 | -6/Factory | Entered Garrison 8521 | -6/Garrison | Lost 4 allies 8617 | -6/Garrison | Garrison Relay disabled 8618 | -6/Garrison | Triggered checkpoint 8698 | -6/Garrison | Triggered checkpoint 8710 | -6/Garrison | Triggered checkpoint 8738 | -6/Garrison | Triggered checkpoint 8976 | -6/Garrison | Lost 5 parts (3n1u1w) 9022 | -6/Garrison | Garrison Relay disabled 9069 | -6/Garrison | Discovered new exit (range 11) 9100 | -6/Garrison | Rewired B-75 Beast 9339 | -6/Garrison | Discovered new exit (range 5) 9364 | -6/Garrison | Entered Factory 9364 | -5/Factory | Accompanied by 1 ally 9364 | -5/Factory | Evolved 2 slots: Utility x2 9691 | -5/Factory | Found Imp. Powered Armor 9813 | -5/Factory | Identified exit to Garrison 9830 | -5/Factory | Entered Garrison 9830 | -5/Garrison | Accompanied by 1 ally 9858 | -5/Garrison | Triggered checkpoint 9924 | -5/Garrison | Garrison Relay disabled 9938 | -5/Garrison | Heavy support dispatched to Factory 10182 | -5/Garrison | Lost 3 allies 10644 | -5/Garrison | Expanded RIF knowledge: Autooverride 10832 | -5/Garrison | Discovered new exit (range 11) 10934 | -5/Garrison | Garrison Relay disabled 10940 | -5/Garrison | Triggered checkpoint 10988 | -5/Garrison | Learned Factory security intel 11133 | -5/Garrison | Entered Factory 11133 | -4/Factory | Accompanied by 6 allies 11133 | -4/Factory | Evolved 2 slots: Power x1, Utility x1 11270 | -4/Factory | Discovered new exit (range 11) 11399 | -4/Factory | Fabricated Hyp. Gauss Rifle (x2) 11447 | -4/Factory | Fabricated Hyp. Gauss Rifle (x2) 11474 | -4/Factory | Lost 3 allies 11623 | -4/Factory | Lost 10 parts (2p2n3u3w) 11676 | -4/Factory | System corruption reached 10% 11678 | -4/Factory | Lost 5 parts (1p1n2u1w) 11780 | -4/Factory | Core integrity fell below 50% 11807 | -4/Factory | Lost 5 parts (1p1n3u) 11916 | -4/Factory | Entered Upper Caves 12117 | -4/Upper Caves | Learned location of Quarantine (-2) 12157 | -4/Upper Caves | Discovered new exit (range 8) 12160 | -4/Upper Caves | Spotted B-86 Titan 12182 | -4/Upper Caves | Assimilated Titan 7a with formatsys_high 12282 | -4/Upper Caves | Entered another Upper Caves area 12282 | -4/Upper Caves | Accompanied by 1 ally 12356 | -4/Upper Caves | Encountered a Warlord checkpoint 12447 | -4/Upper Caves | Discovered new exit (range 7) 12454 | -4/Upper Caves | Build established: Scavenger-Mutant 12492 | -4/Upper Caves | Entered Research 12492 | -3/Research | Accompanied by 1 ally 12492 | -3/Research | Evolved 2 slots: Utility x1, Weapon x1 12825 | -3/Research | Garrison activated, responded to threat 12921 | -3/Research | Core integrity fell below 50% 12955 | -3/Research | Lost 17 parts (3p4n9u1w) 12962 | -3/Research | Spotted B-86 Titan 12988 | -3/Research | Identified exit to Garrison 12988 | -3/Research | Entered Garrison 13039 | -3/Garrison | Core integrity fell below 20% 13065 | -3/Garrison | Expanded RIF knowledge: Structural Interface 13095 | -3/Garrison | Spotted B-86 Titan 13104 | -3/Garrison | Lost 11 parts (2p4n4u1w) 13110 | -3/Garrison | Triggered checkpoint 13154 | -3/Garrison | Destroyed by G-73 Enforcer with Phase Gun Last Messages --------------- 13091_ Acquired 8 matter. 13092_ RIF reveals location of phase wall. 13103_ Acquired Xenon Bombardment Thruster. 13107_ RIF reveals location of phase wall. 13110_ Knocked back. 13110_ RIF reveals location of phase wall. 13127_ X-82 Rainmaker suffers critical hit (Destroy). 13127_ X-82 Rainmaker destroyed. 13130_ X-82 Rainmaker knocked back. 13134_ Knocked back. 13135_ Slug penetrates X-82 Rainmaker. 13135_ X-82 Rainmaker knocked back. 13138_ Slug penetrates X-82 Rainmaker. 13138_ G-67 Veteran Plasma Rifle blasted off. 13141_ Slug penetrates G-73 Enforcer. 13141_ G-67 Veteran knocked back. 13144_ G-73 Enforcer Adv. Heat Sink blasted off. 13144_ G-73 Enforcer knocked back. 13150_ Slug penetrates G-73 Enforcer. 13152_ Hvy. Machine Gun destroyed. Map ----- +----------------------------------------------------+ | | | | | | | | | | | | | | | | | | | | | | | | | | | ?????????????????????????????????????????????????? | | ?????????????????????????????????????????????????? | | ?????????????????????????????????????????????????? | | ?????????????????????????????????????????????????? | | ?????????????????????????????????????????????????? | | ?????????????????????????????????????????????????? | | ?????????????????????????????????????????????????? | | ?????????????????????????????????????????????????? | | ?????????????????????????????????????????????????? | | ?????????????????????????????????????????????????? | | ?????????????????????????????????????????????????? | | ????????????????????????####?????????????????????? | | ????????????????????????#@ #?????????????????????? | | ???????????????????????#;g!#?????????????????????? | | ???????????????????????#;%##?????????????????????? | | ???????????????????????##%###????????????????????? | | ????????????????????????#g#"#????????????????????? | | ????????????????????????#x "#????????????????????? | | ????????????????????????#g%"#????????????????????? | | ????????????????????????#g "#????????????????????? | | ????????????????????????#g#"#????????????????????? | | ????????????????????????# ###????????????????????? | | ????????????????????????# #??????????????????????? | | ????????????????????????# #??????????????????????? | | ????????????????????????#[#??????????????????????? | | ??????????????????????###%#??????????????????????? | | ????#####???????####### #??????????????????????? | | ????# #???????# + #??????????????????????? | | ????# #########+##### #??????????????????????? | | ????# #???### #??????????????????????? | | ????# #?????# #??????????????????????? | | ????######+##"##% ####### #??????????????????????? | | ????????????##?#[% #??????????????????????? | | ???????????????# ####+####??????????????????????? | | ???????????????# #??# #?????????????????????????? | | ???????????????# #??# #?????????????????????????? | | ???????????????# #??# #?????????????????????????? | +----------------------------------------------------+ Best States ------------- Heat Dissipation 79 Energy Generation 39 Energy Capacity 500 Matter Stores 300 Matter Capacity 300 Sight Range 20 Robot Scan Range 15 Terrain Scan Range 14 Terrain Scan Density 85 Jamming Range 12 Additional Mass Support 16 Armor Coverage 600 Resistance: TH 20 Phase Shifting 10 Evasion (%) 75 Targeting Accuracy 10 Melee Accuracy 5 Target Analysis 9 Recoil Reduction 4 Kinecelleration 40 Offensive Hacking 20 Relay Coupler Types 7 Relay Coupler Value 189 Authchip Count 2 Trap Extractor Capacity 4 Item Schematics ----------------- Hyp. Gauss Rifle | -7/Factory | Hacked Robot Schematics ------------------ None Fabricated ------------ Hyp. Gauss Rifle | x2 | -4/Factory | Authchip Hyp. Gauss Rifle | x2 | -4/Factory | Authchip Repaired ---------- Nothing Alien Tech Used ----------------- None Achievements -------------- None Challenges ------------ None Game ------ Seed AdvancedAlphaWings Manual? 0 Play Time 01:40:42 Cumulative 1100.5 hours Start 2025.06.10 @ 20:47:55 End 2025.06.11 @ 15:44:02 Sessions 3 Manual Loads 0 Difficulty Rogue Special Mode None Game No. 1356 Rogue 1072 Adventurer 124 Explorer 160 Win Type - Total 49 Types 35/0/8/4/1/0/0/1/0/0 Lore% 92 Gallery% 87 Achievement% 81 Wizard Run 0 Options --------- Layout 0 ASCII 0 Keyboard 1 Movement Numpad Keybinds 0 Fullscreen 2 Font 18/X11 Map View 76x50 Zoom Use 0% Tactical HUD 1 Map Filters NONE Filters NONE Steam 1 RUN: 8f50115f-33ad-4c7f-bd66-b8df4757e95c